[Event "EYCC 2017"]
[Site "Mamaia"]
[Date "2017.09.08"]
[Round "4"]
[White "Yakimova, Mariya"]
[Black "Allahverdiyeva, Ayan"]
[Result "0-1"]
[ECO "B80"]
[WhiteElo "1736"]
[BlackElo "2042"]
[Annotator "NA"]
[PlyCount "52"]
[EventDate "2017.??.??"]
[EventType "swiss"]
[EventCountry "ROU"]
[SourceTitle "playchess.com"]
[Source "ChessBase"]
[SourceQuality "1"]
[TimeControl "40/5400+30:1800+30"]

1. e4 {[%emt 0:00:00]} c5 {[%emt 0:00:14]} 2. Nf3 {[%emt 0:00:00]} d6 {[%emt 0:00:24]} 3. d4 {[%emt 0:00:00]} cxd4 {[%emt 0:00:04]} 4. Nxd4 {[%emt 0:00:00]} Nf6 {[%emt 0:00:03]} 5. Nc3 {[%emt 0:00:00]} e6 {[%emt 0:00:52]} 6. a3 {[%emt 0:02:24]} Be7 {[%emt 0:02:11]} 7. Be3 {[%emt 0:00:16]} Nc6 {[%emt 0:00:40]} 8. f4 {[%emt 0:00:28]} O-O {[%emt 0:01:50]} 9. Qf3 {[%emt 0:00:05]} e5 {[%emt 0:00:21]} 10. Nxc6 {[%emt 0:04:30]} bxc6 {[%emt 0:00:07]} 11. fxe5 {[%emt 0:00:33]} dxe5 {[%emt 0:01:24]} 12. h3 {[%emt 0:06:58]} Rb8 {[%emt 0:04:45]} 13. Bc4 {[%emt 0:10:59]} Be6 {[%emt 0:21:13]} 14. Bxe6 {[%emt 0:02:07]} fxe6 {[%emt 0:01:22]} 15. Qe2 {[%emt 0:07:46]} Ne8 {[%emt 0:30:46]} 16. Qg4 {[%emt 0:15:55]} Rf6 {[%emt 0:01:50]} 17. b3 {[%emt 0:28:23]} Rg6 {[%emt 0:02:06]} 18. Qf3 {[%emt 0:09:26]} Rg3 {[%emt 0:04:56]} 19. Qf2 {[%emt 0:02:22]} Bg5 {[%emt 0:05:02]} 20. Bxg5 {[%emt 0:01:24]} Qxg5 {[%emt 0:00:01]} 21. h4 {[%emt 0:05:11]} Qg6 {[%emt 0:03:05]} 22. Qc5 {[%emt 0:00:43]} Qg4 {[%emt 0:04:43]} 23. Qxe5 {[%emt 0:01:17]} Rd8 {[%emt 0:00:16]} 24. Rh3 {[%emt 0:00:33]} Rxg2 {[%emt 0:00:26]} 25. Rh1 {[%emt 0:00:28]} Rdd2 {[%emt 0:00:57]} 26. Qb8 {[%emt 0:00:33]} Rge2+ {[%emt 0:00:12]} 0-1

[Event "EYCC 2017"]
[Site "Mamaia"]
[Date "2017.09.08"]
[Round "4"]
[White "Vetokhin, Savva"]
[Black "Azadaliyev, Jahandar"]
[Result "1-0"]
[ECO "A45"]
[WhiteElo "1703"]
[BlackElo "1423"]
[Annotator "NA RC"]
[PlyCount "97"]
[EventDate "2017.??.??"]
[EventType "swiss"]
[EventCountry "ROU"]
[SourceTitle "playchess.com"]
[Source "ChessBase"]
[SourceQuality "1"]
[TimeControl "40/5400+30:1800+30"]

1. d4 {[%emt 0:00:00]} Nf6 {[%emt 0:00:13]} 2. Nc3 {[%emt 0:00:07]} d5 {[%emt 0:00:21]} 3. Bf4 {[%emt 0:00:33]} e6 {[%emt 0:00:17]} 4. e3 {[%emt 0:00:25]} Bd6 {[%emt 0:00:15]} 5. Bd3 {[%emt 0:00:45]} O-O {[%emt 0:00:49]} 6. Nf3 {[%emt 0:00:24]} a6 {[%emt 0:01:12]} 7. O-O {[%emt 0:00:41]} Nc6 {[%emt 0:00:34]} 8. a3 {[%emt 0:00:55]} b5 {[%emt 0:00:56]} 9. Ne5 {[%emt 0:04:45]} Bb7 {[%emt 0:09:34]} 10. Bg3 {[%emt 0:03:52]} Ne7 {[%emt 0:00:52]} 11. Bh4 {[%emt 0:08:21]} Nd7 {[%emt 0:00:55]} 12. Nxd7 {[%emt 0:03:22]} Qxd7 {[%emt 0:00:12]} 13. e4 {[%emt 0:00:07]} dxe4 {[%emt 0:00:45]} 14. Nxe4 {[%emt 0:00:39]} Ng6 {[%emt 0:02:17]} 15. Qh5 {[%emt 0:01:02]} Be7 {[%emt 0:00:26]} 16. Bxe7 {[%emt 0:03:51]} Qxe7 {[%emt 0:00:36]} 17. Rfe1 {[%emt 0:07:39]} Qd8 {[%emt 0:06:06]} 18. Ng5 {[%emt 0:01:55]} h6 {[%emt 0:00:31]} 19. Nxe6 {[%emt 0:00:30]} fxe6 {[%emt 0:00:18]} 20. Qxg6 {[%emt 0:00:26]} Rf6 {[%emt 0:00:14]} 21. Qg4 {[%emt 0:00:31]} Kf7 {[%emt 0:01:02]} 22. Re5 {[%emt 0:04:41]} Qd7 {[%emt 0:00:31]} 23. Be4 {[%emt 0:03:12]} Bxe4 {[%emt 0:00:13]} 24. Qxe4 {[%emt 0:00:05]} Rd8 {[%emt 0:00:08]} 25. c3 {[%emt 0:01:39]} Rb8 {[%emt 0:01:22]} 26. Re1 {[%emt 0:00:19]} Rb6 {[%emt 0:00:27]} 27. d5 {[%emt 0:02:40]} Rd6 {[%emt 0:01:17]} 28. dxe6+ {[%emt 0:00:26]} Rdxe6 {[%emt 0:00:09]} 29. Rxe6 {[%emt 0:00:14]} Qxe6 {[%emt 0:00:11]} 30. Qxe6+ {[%emt 0:00:07]} Rxe6 {[%emt 0:00:04]} 31. Rxe6 {[%emt 0:00:12]} Kxe6 {[%emt 0:00:06]} 32. Kf1 {[%emt 0:00:10]} Kd5 {[%emt 0:00:10]} 33. Ke2 {[%emt 0:00:17]} Kc4 {[%emt 0:00:19]} 34. Kd2 {[%emt 0:00:07]} Kb3 {[%emt 0:00:33]} 35. Kc1 {[%emt 0:00:08]} Kc4 {[%emt 0:00:05]} 36. Kc2 {[%emt 0:00:21]} Kd5 {[%emt 0:00:09]} 37. Kd3 {[%emt 0:00:08]} c5 {[%emt 0:00:14]} 38. h4 {[%emt 0:00:34]} Ke5 {[%emt 0:00:19]} 39. b4 {[%emt 0:00:21]} c4+ {[%emt 0:00:26]} 40. Ke3 {[%emt 0:00:00]} g5 {[%emt 0:00:10]} 41. hxg5 {[%emt 0:00:24]} hxg5 {[%emt 0:00:02]} 42. g4 {[%emt 0:00:16]} Kf6 {[%emt 0:00:32]} 43. Ke4 {[%emt 0:00:08]} Ke6 {[%emt 0:00:12]} 44. f3 {[%emt 0:00:07]} Kf6 {[%emt 0:00:24]} 45. Kd5 {[%emt 0:00:08]} Ke7 {[%emt 0:00:11]} 46. Ke5 {[%emt 0:00:11]} Kf7 {[%emt 0:00:05]} 47. Kf5 {[%emt 0:00:10]} Kg7 {[%emt 0:00:09]} 48. Kxg5 {[%emt 0:00:21]} Kf7 {[%emt 0:00:15]} 49. f4 1-0

[Event "EYCC 2017"]
[Site "Mamaia"]
[Date "2017.09.08"]
[Round "4"]
[White "Kolesov, Gordey"]
[Black "Maurizzi, Marc Andria"]
[Result "0-1"]
[ECO "E25"]
[WhiteElo "1672"]
[BlackElo "1947"]
[Annotator "NA"]
[PlyCount "136"]
[EventDate "2017.??.??"]
[EventType "swiss"]
[EventCountry "ROU"]
[SourceTitle "playchess.com"]
[Source "ChessBase"]
[SourceQuality "1"]
[TimeControl "40/5400+30:1800+30"]

1. d4 {[%emt 0:00:00]} Nf6 {[%emt 0:00:12]} 2. c4 {[%emt 0:00:00]} e6 {[%emt 0:00:14]} 3. Nc3 {[%emt 0:00:00]} Bb4 {[%emt 0:00:13]} 4. f3 {[%emt 0:00:17]} d5 {[%emt 0:02:34]} 5. a3 {[%emt 0:00:23]} Bxc3+ {[%emt 0:00:10]} 6. bxc3 {[%emt 0:00:08]} c5 {[%emt 0:00:08]} 7. cxd5 {[%emt 0:00:15]} exd5 {[%emt 0:00:21]} 8. e3 {[%emt 0:04:13]} Qc7 {[%emt 0:00:33]} 9. Bd2 {[%emt 0:06:53]} Bf5 {[%emt 0:06:26]} 10. Bb5+ {[%emt 0:01:35]} Nc6 {[%emt 0:03:29]} 11. Ne2 {[%emt 0:03:38]} O-O {[%emt 0:03:51]} 12. O-O {[%emt 0:05:09]} a6 {[%emt 0:05:20]} 13. Ba4 {[%emt 0:01:00]} Rac8 {[%emt 0:00:52]} 14. Bc2 {[%emt 0:03:35]} Bxc2 {[%emt 0:00:48]} 15. Qxc2 {[%emt 0:00:07]} cxd4 {[%emt 0:00:14]} 16. exd4 {[%emt 0:01:04]} Rfe8 {[%emt 0:00:24]} 17. Qd3 {[%emt 0:01:08]} Na5 {[%emt 0:00:35]} 18. Bg5 {[%emt 0:08:14]} Nd7 {[%emt 0:04:25]} 19. Rfe1 {[%emt 0:07:54]} Qc4 {[%emt 0:05:54]} 20. Qxc4 {[%emt 0:00:46]} Nxc4 {[%emt 0:00:09]} 21. a4 {[%emt 0:02:52]} h6 {[%emt 0:05:33]} 22. Bh4 {[%emt 0:01:03]} Ne3 {[%emt 0:02:50]} 23. Rac1 {[%emt 0:03:06]} Nb6 {[%emt 0:00:41]} 24. Bf2 {[%emt 0:06:30]} Nec4 {[%emt 0:01:37]} 25. Rb1 {[%emt 0:02:23]} a5 {[%emt 0:05:13]} 26. Nf4 {[%emt 0:01:43]} Rxe1+ {[%emt 0:03:21]} 27. Rxe1 {[%emt 0:02:30]} Rc7 {[%emt 0:10:01]} 28. Bg3 {[%emt 0:08:17]} Rd7 {[%emt 0:00:24]} 29. Re8+ {[%emt 0:00:05]} Kh7 {[%emt 0:00:11]} 30. Nd3 {[%emt 0:06:48]} Nxa4 {[%emt 0:01:05]} 31. Kf1 {[%emt 0:02:07]} b6 {[%emt 0:01:10]} 32. Be1 {[%emt 0:01:50]} Nab2 {[%emt 0:03:51]} 33. Ke2 {[%emt 0:02:18]} Ra7 {[%emt 0:02:04]} 34. Nxb2 {[%emt 0:01:17]} Nxb2 {[%emt 0:00:16]} 35. Kd2 {[%emt 0:00:29]} a4 {[%emt 0:00:45]} 36. Kc2 {[%emt 0:00:07]} a3 {[%emt 0:01:06]} 37. Kb1 {[%emt 0:00:06]} Nc4 {[%emt 0:02:19]} 38. Ka2 {[%emt 0:01:22]} Ra5 {[%emt 0:00:42]} 39. Re2 {[%emt 0:01:20]} Rb5 {[%emt 0:00:37]} 40. Bf2 {[%emt 0:00:00]} Kg6 {[%emt 0:00:34]} 41. g3 {[%emt 0:07:07]} Kf5 {[%emt 0:01:11]} 42. Be3 {[%emt 0:03:05]} Rb2+ {[%emt 0:01:06]} 43. Rxb2 {[%emt 0:00:09]} axb2 {[%emt 0:00:02]} 44. g4+ {[%emt 0:00:13]} Ke6 {[%emt 0:00:30]} 45. Bf4 {[%emt 0:01:22]} g5 {[%emt 0:01:01]} 46. Bc7 {[%emt 0:00:19]} f5 {[%emt 0:00:34]} 47. h3 {[%emt 0:01:20]} f4 {[%emt 0:00:57]} 48. h4 {[%emt 0:03:21]} gxh4 {[%emt 0:01:52]} 49. Bxf4 {[%emt 0:00:12]} h3 {[%emt 0:00:04]} 50. Kb1 {[%emt 0:09:06]} Nd2+ {[%emt 0:00:14]} 51. Kxb2 {[%emt 0:00:08]} Nxf3 {[%emt 0:00:06]} 52. Kb3 {[%emt 0:01:42]} h2 {[%emt 0:00:10]} 53. Bxh2 {[%emt 0:00:05]} Nxh2 {[%emt 0:00:04]} 54. Kb4 {[%emt 0:00:27]} Nxg4 {[%emt 0:00:08]} 55. c4 {[%emt 0:00:12]} dxc4 {[%emt 0:00:13]} 56. d5+ {[%emt 0:00:05]} Kxd5 {[%emt 0:00:06]} 57. Kc3 {[%emt 0:00:07]} h5 {[%emt 0:00:05]} 58. Kb4 {[%emt 0:00:04]} h4 {[%emt 0:00:05]} 59. Kb5 {[%emt 0:00:07]} h3 {[%emt 0:00:04]} 60. Kxb6 {[%emt 0:00:14]} c3 {[%emt 0:00:05]} 61. Kb7 {[%emt 0:00:05]} c2 {[%emt 0:01:34]} 62. Kb8 {[%emt 0:00:04]} Kc6 {[%emt 0:00:16]} 63. Kc8 {[%emt 0:00:12]} c1=Q {[%emt 0:00:12]} 64. Kd8 {[%emt 0:00:07]} Qd2+ {[%emt 0:00:08]} 65. Ke7 {[%emt 0:00:45]} Qh6 {[%emt 0:00:15]} 66. Kf7 {[%emt 0:00:05]} Ne5+ {[%emt 0:00:08]} 67. Ke7 {[%emt 0:00:11]} Qd6+ {[%emt 0:00:08]} 68. Ke8 {[%emt 0:00:07]} Qd7+ {[%emt 0:00:05]} 0-1

[Event "EYCC 2017"]
[Site "Mamaia"]
[Date "2017.09.08"]
[Round "4"]
[White "Matasaru, Stephanie"]
[Black "Zvereva, Margarita"]
[Result "1-0"]
[ECO "B90"]
[WhiteElo "1662"]
[BlackElo "1790"]
[Annotator "NA"]
[PlyCount "125"]
[EventDate "2017.??.??"]
[EventType "swiss"]
[EventCountry "ROU"]
[SourceTitle "playchess.com"]
[Source "ChessBase"]
[SourceQuality "1"]
[TimeControl "40/5400+30:1800+30"]

1. e4 {[%emt 0:00:00]} c5 {[%emt 0:00:07]} 2. Nf3 {[%emt 0:00:00]} d6 {[%emt 0:00:04]} 3. d4 {[%emt 0:00:00]} cxd4 {[%emt 0:00:04]} 4. Nxd4 {[%emt 0:00:00]} Nf6 {[%emt 0:00:04]} 5. Nc3 {[%emt 0:00:00]} a6 {[%emt 0:00:05]} 6. h3 {[%emt 0:00:18]} e5 {[%emt 0:00:45]} 7. Nde2 {[%emt 0:00:12]} h5 {[%emt 0:01:35]} 8. Bg5 {[%emt 0:03:03]} Be7 {[%emt 0:01:49]} 9. Qd2 {[%emt 0:06:02]} Be6 {[%emt 0:13:21]} 10. O-O-O {[%emt 0:06:08]} Nbd7 {[%emt 0:01:20]} 11. Kb1 {[%emt 0:04:34]} b5 {[%emt 0:04:28]} 12. a3 {[%emt 0:01:45]} Rb8 {[%emt 0:21:09]} 13. Bxf6 {[%emt 0:11:32]} Nxf6 {[%emt 0:01:58]} 14. Ng3 {[%emt 0:04:11]} g6 {[%emt 0:06:45]} 15. f4 {[%emt 0:04:35]} exf4 {[%emt 0:16:16]} 16. Qxf4 {[%emt 0:00:56]} Nd7 {[%emt 0:07:18]} 17. Nd5 {[%emt 0:05:37]} Bxd5 {[%emt 0:05:36]} 18. exd5 {[%emt 0:01:20]} Ne5 {[%emt 0:01:50]} 19. Ne4 {[%emt 0:05:01]} Rc8 {[%emt 0:11:17]} 20. Bd3 {[%emt 0:08:14]} Kf8 {[%emt 0:02:50]} 21. Rhf1 {[%emt 0:09:03]} Kg7 {[%emt 0:00:34]} 22. Rf2 {[%emt 0:03:54]} Qb6 {[%emt 0:01:32]} 23. Rdf1 {[%emt 0:09:29]} Qd8 {[%emt 0:00:36]} 24. g3 {[%emt 0:04:26]} Rf8 {[%emt 0:00:31]} 25. Be2 {[%emt 0:01:24]} Rb8 {[%emt 0:00:29]} 26. Nf6 {[%emt 0:02:48]} Bxf6 {[%emt 0:00:26]} 27. Qxf6+ {[%emt 0:00:07]} Qxf6 {[%emt 0:00:03]} 28. Rxf6 {[%emt 0:00:10]} Rfd8 {[%emt 0:00:43]} 29. R6f4 {[%emt 0:01:06]} Rbc8 {[%emt 0:00:36]} 30. a4 {[%emt 0:00:58]} Rc5 {[%emt 0:00:31]} 31. axb5 {[%emt 0:01:13]} axb5 {[%emt 0:00:08]} 32. Rb4 {[%emt 0:00:54]} Rxd5 {[%emt 0:00:53]} 33. Rxb5 {[%emt 0:01:11]} Rd4 {[%emt 0:00:39]} 34. Rd1 {[%emt 0:01:17]} Re4 {[%emt 0:00:21]} 35. Bf1 {[%emt 0:01:06]} Re3 {[%emt 0:00:32]} 36. Rb3 {[%emt 0:00:21]} Rxb3 {[%emt 0:00:33]} 37. cxb3 {[%emt 0:00:07]} Kf8 {[%emt 0:00:28]} 38. b4 {[%emt 0:00:50]} Ke7 {[%emt 0:00:23]} 39. Kc2 {[%emt 0:00:13]} Rb8 {[%emt 0:00:41]} 40. b5 {[%emt 0:00:00]} Nd7 {[%emt 0:00:34]} 41. b4 {[%emt 0:01:47]} Nb6 {[%emt 0:04:11]} 42. Kc3 {[%emt 0:02:18]} Rc8+ {[%emt 0:15:09]} 43. Kd4 {[%emt 0:11:18]} Kf8 {[%emt 0:02:33]} 44. Bd3 {[%emt 0:01:33]} Kg7 {[%emt 0:01:42]} 45. Re1 {[%emt 0:03:01]} Kf8 {[%emt 0:01:15]} 46. Ra1 {[%emt 0:00:38]} Rb8 {[%emt 0:03:19]} 47. Ra7 {[%emt 0:01:50]} Ke8 {[%emt 0:04:20]} 48. Bc4 {[%emt 0:01:09]} Nd7 {[%emt 0:00:40]} 49. Bd5 {[%emt 0:06:14]} Rxb5 {[%emt 0:01:14]} 50. Kc4 {[%emt 0:03:28]} Rb6 {[%emt 0:00:26]} 51. Bxf7+ {[%emt 0:00:49]} Kxf7 {[%emt 0:00:11]} 52. Rxd7+ {[%emt 0:00:06]} Ke6 {[%emt 0:00:28]} 53. Rg7 {[%emt 0:00:26]} Kf6 {[%emt 0:00:05]} 54. Rc7 {[%emt 0:00:35]} Ke6 {[%emt 0:01:09]} 55. b5 {[%emt 0:00:22]} Rb8 {[%emt 0:00:41]} 56. Rc6 {[%emt 0:00:51]} Kd7 {[%emt 0:00:29]} 57. Ra6 {[%emt 0:00:45]} Rb7 {[%emt 0:00:33]} 58. Kb4 {[%emt 0:00:47]} Kd8 {[%emt 0:00:32]} 59. Rxd6+ {[%emt 0:00:18]} Ke7 {[%emt 0:00:17]} 60. Rxg6 {[%emt 0:00:14]} Kf7 {[%emt 0:00:17]} 61. Rh6 {[%emt 0:00:28]} Kg7 {[%emt 0:00:06]} 62. Rxh5 {[%emt 0:00:07]} Kg6 {[%emt 0:00:24]} 63. Rc5 {[%emt 0:00:10]} 1-0

[Event "EYCC 2017"]
[Site "Mamaia"]
[Date "2017.09.08"]
[Round "4"]
[White "Kvikvinia, Teimuraz"]
[Black "Chyzy, Jakub"]
[Result "0-1"]
[ECO "C91"]
[WhiteElo "1597"]
[BlackElo "2060"]
[Annotator "NA RC"]
[PlyCount "60"]
[EventDate "2017.??.??"]
[EventType "swiss"]
[EventCountry "ROU"]
[SourceTitle "playchess.com"]
[Source "ChessBase"]
[SourceQuality "1"]
[TimeControl "40/5400+30:1800+30"]

1. e4 {[%emt 0:00:00]} e5 {[%emt 0:00:04]} 2. Nf3 {[%emt 0:00:00]} Nc6 {[%emt 0:00:05]} 3. Bb5 {[%emt 0:00:19]} a6 {[%emt 0:00:05]} 4. Ba4 {[%emt 0:00:15]} Nf6 {[%emt 0:00:06]} 5. O-O {[%emt 0:00:06]} Be7 {[%emt 0:00:21]} 6. Re1 {[%emt 0:01:42]} b5 {[%emt 0:00:15]} 7. Bb3 {[%emt 0:00:13]} d6 {[%emt 0:00:05]} 8. c3 {[%emt 0:00:08]} O-O {[%emt 0:00:09]} 9. d4 {[%emt 0:00:39]} Bg4 {[%emt 0:00:47]} 10. Be3 {[%emt 0:01:07]} exd4 {[%emt 0:05:25]} 11. cxd4 {[%emt 0:00:16]} Na5 {[%emt 0:00:26]} 12. Bc2 {[%emt 0:00:01]} c5 {[%emt 0:01:18]} 13. h3 {[%emt 0:00:54]} Bh5 {[%emt 0:26:22]} 14. Nbd2 {[%emt 0:04:18]} Nc6 {[%emt 0:05:52]} 15. Qb1 {[%emt 0:09:10]} Nb4 {[%emt 0:05:07]} 16. e5 {[%emt 0:02:28]} Nxc2 {[%emt 0:07:28]} 17. Qxc2 {[%emt 0:00:39]} Nd5 {[%emt 0:20:19]} 18. exd6 {[%emt 0:02:12]} Bxd6 {[%emt 0:02:35]} 19. dxc5 {[%emt 0:00:39]} Rc8 {[%emt 0:01:47]} 20. Qb3 {[%emt 0:15:52]} Nxe3 {[%emt 0:08:34]} 21. Rxe3 {[%emt 0:01:15]} Bxc5 {[%emt 0:00:44]} 22. Re5 {[%emt 0:01:12]} Bxf3 {[%emt 0:04:49]} 23. Nxf3 {[%emt 0:00:33]} Qb6 {[%emt 0:00:37]} 24. Re2 {[%emt 0:03:27]} Rfe8 {[%emt 0:02:10]} 25. Rae1 {[%emt 0:02:05]} Rxe2 {[%emt 0:00:53]} 26. Rxe2 {[%emt 0:02:30]} Bxf2+ {[%emt 0:00:10]} 27. Kh2 {[%emt 0:02:08]} Qc7+ {[%emt 0:01:23]} 28. Ne5 {[%emt 0:00:34]} Bd4 {[%emt 0:00:37]} 29. Qd5 {[%emt 0:03:05]} Rd8 {[%emt 0:00:35]} 30. Qe4 {[%emt 0:00:27]} f6 {[%emt 0:00:22]} 0-1

[Event "EYCC 2017"]
[Site "Mamaia"]
[Date "2017.09.08"]
[Round "4"]
[White "Gasimova, Samra"]
[Black "Rasheva, Nora"]
[Result "1-0"]
[ECO "A90"]
[WhiteElo "1578"]
[BlackElo "1303"]
[Annotator "NA"]
[PlyCount "42"]
[EventDate "2017.??.??"]
[EventType "swiss"]
[EventCountry "ROU"]
[SourceTitle "playchess.com"]
[Source "ChessBase"]
[SourceQuality "1"]
[TimeControl "40/5400+30:1800+30"]

1. d4 {[%emt 0:00:00]} f5 {[%emt 0:00:11]} 2. c4 {[%emt 0:00:00]} Nf6 {[%emt 0:00:16]} 3. g3 {[%emt 0:00:15]} e6 {[%emt 0:00:10]} 4. Bg2 {[%emt 0:00:24]} Bb4+ {[%emt 0:00:54]} 5. Nc3 {[%emt 0:01:22]} O-O {[%emt 0:03:39]} 6. Nh3 {[%emt 0:00:40]} Ne4 {[%emt 0:04:45]} 7. Qc2 {[%emt 0:06:49]} d5 {[%emt 0:17:36]} 8. cxd5 {[%emt 0:01:30]} Qxd5 {[%emt 0:09:07]} 9. O-O {[%emt 0:07:11]} Bxc3 {[%emt 0:05:34]} 10. bxc3 {[%emt 0:00:12]} Qc6 {[%emt 0:03:35]} 11. Bf4 {[%emt 0:08:56]} Nd7 {[%emt 0:02:25]} 12. Rfd1 {[%emt 0:11:48]} Ndf6 {[%emt 0:01:21]} 13. c4 {[%emt 0:04:56]} b6 {[%emt 0:08:53]} 14. Be5 {[%emt 0:20:52]} Bb7 {[%emt 0:03:55]} 15. Bxf6 {[%emt 0:05:34]} Rxf6 {[%emt 0:00:11]} 16. Nf4 {[%emt 0:00:57]} g5 {[%emt 0:17:37]} 17. Nd3 {[%emt 0:11:51]} Qe8 {[%emt 0:05:33]} 18. Ne5 {[%emt 0:02:34]} h5 {[%emt 0:05:07]} 19. Qd3 {[%emt 0:07:42]} Rd8 {[%emt 0:03:00]} 20. Qc2 {[%emt 0:05:16]} Rh6 {[%emt 0:03:39]} 21. Qc1 {[%emt 0:00:49]} Nf6 1-0

[Event "EYCC 2017"]
[Site "Mamaia"]
[Date "2017.09.08"]
[Round "4"]
[White "Mogirzan, Matei-Valeriu"]
[Black "Gherghinoiu, Lucas"]
[Result "1-0"]
[ECO "B42"]
[WhiteElo "1575"]
[BlackElo "1805"]
[Annotator "NA"]
[PlyCount "55"]
[EventDate "2017.??.??"]
[EventType "swiss"]
[EventCountry "ROU"]
[SourceTitle "playchess.com"]
[Source "ChessBase"]
[SourceQuality "1"]
[TimeControl "40/5400+30:1800+30"]

1. e4 {[%emt 0:00:00]} c5 {[%emt 0:00:18]} 2. Nf3 {[%emt 0:00:00]} e6 {[%emt 0:00:08]} 3. d4 {[%emt 0:00:00]} cxd4 {[%emt 0:00:22]} 4. Nxd4 {[%emt 0:00:00]} a6 {[%emt 0:00:07]} 5. Bd3 {[%emt 0:00:13]} g6 6. O-O {[%emt 0:00:13]} Bg7 {[%emt 0:02:01]} 7. Nb3 {[%emt 0:00:10]} b6 {[%emt 0:03:03]} 8. Nc3 {[%emt 0:00:49]} Bb7 {[%emt 0:02:30]} 9. f4 {[%emt 0:05:11]} d6 {[%emt 0:02:52]} 10. f5 {[%emt 0:13:33]} Nf6 {[%emt 0:04:17]} 11. Bf4 {[%emt 0:03:57]} O-O {[%emt 0:11:40]} 12. fxe6 {[%emt 0:02:57]} fxe6 {[%emt 0:00:59]} 13. Qe2 {[%emt 0:06:42]} d5 {[%emt 0:26:16]} 14. Rad1 {[%emt 0:07:02]} Nh5 {[%emt 0:16:20]} 15. Bxb8 {[%emt 0:06:06]} Rxf1+ {[%emt 0:01:57]} 16. Rxf1 {[%emt 0:01:16]} Rxb8 {[%emt 0:03:12]} 17. exd5 {[%emt 0:01:18]} exd5 {[%emt 0:01:28]} 18. Bxa6 {[%emt 0:04:16]} Bxa6 {[%emt 0:03:14]} 19. Qxa6 {[%emt 0:00:08]} d4 {[%emt 0:04:04]} 20. Qc4+ {[%emt 0:00:26]} Kh8 {[%emt 0:00:20]} 21. Ne2 {[%emt 0:06:25]} Qh4 {[%emt 0:03:54]} 22. Nbxd4 {[%emt 0:04:58]} Re8 23. Qd3 {[%emt 0:06:03]} Qe7 {[%emt 0:09:57]} 24. c3 {[%emt 0:02:55]} Nf6 {[%emt 0:00:47]} 25. Nf4 {[%emt 0:02:32]} Ng4 {[%emt 0:01:28]} 26. Qf3 {[%emt 0:05:13]} Ne5 {[%emt 0:01:02]} 27. Qe4 {[%emt 0:01:09]} Qd7 {[%emt 0:00:38]} 28. Qd5 {[%emt 0:04:01]} 1-0

[Event "EYCC 2017"]
[Site "Mamaia"]
[Date "2017.09.08"]
[Round "4"]
[White "Shubenkova, Veronika"]
[Black "Tokarz, Izabela"]
[Result "1-0"]
[ECO "A06"]
[WhiteElo "1505"]
[BlackElo "1324"]
[Annotator "NA"]
[PlyCount "121"]
[EventDate "2017.??.??"]
[EventType "swiss"]
[EventCountry "ROU"]
[SourceTitle "playchess.com"]
[Source "ChessBase"]
[SourceQuality "1"]
[TimeControl "40/5400+30:1800+30"]

1. Nf3 {[%emt 0:00:54]} d5 {[%emt 0:01:18]} 2. d4 {[%emt 0:02:38]} e6 {[%emt 0:00:32]} 3. c4 {[%emt 0:03:08]} Nf6 {[%emt 0:00:51]} 4. cxd5 {[%emt 0:02:54]} exd5 {[%emt 0:00:18]} 5. Bg5 {[%emt 0:01:39]} Be7 {[%emt 0:01:03]} 6. Nc3 {[%emt 0:03:46]} O-O {[%emt 0:00:59]} 7. Bxf6 {[%emt 0:02:41]} Bxf6 {[%emt 0:00:29]} 8. e3 {[%emt 0:01:53]} c6 {[%emt 0:01:47]} 9. Bd3 {[%emt 0:01:45]} Nd7 {[%emt 0:03:27]} 10. O-O {[%emt 0:03:31]} Re8 {[%emt 0:02:02]} 11. Qc2 {[%emt 0:05:11]} Nf8 {[%emt 0:01:11]} 12. a3 {[%emt 0:01:35]} Ng6 {[%emt 0:05:33]} 13. b4 {[%emt 0:04:44]} Bg4 {[%emt 0:04:43]} 14. Be2 {[%emt 0:07:35]} Be7 {[%emt 0:05:00]} 15. Nd2 {[%emt 0:09:49]} Bxe2 {[%emt 0:00:42]} 16. Nxe2 {[%emt 0:00:05]} Bd6 {[%emt 0:00:31]} 17. Ng3 {[%emt 0:01:58]} Nf8 {[%emt 0:05:18]} 18. Nf3 {[%emt 0:07:08]} Ne6 {[%emt 0:02:53]} 19. Qf5 {[%emt 0:05:31]} Bxg3 {[%emt 0:02:46]} 20. hxg3 {[%emt 0:00:33]} Qc8 {[%emt 0:04:50]} 21. g4 {[%emt 0:03:51]} Nc7 {[%emt 0:01:31]} 22. Qxc8 {[%emt 0:01:47]} Raxc8 {[%emt 0:00:08]} 23. a4 {[%emt 0:00:44]} a6 {[%emt 0:00:19]} 24. Rac1 {[%emt 0:00:57]} f6 {[%emt 0:02:36]} 25. g5 {[%emt 0:00:53]} fxg5 {[%emt 0:00:30]} 26. Nxg5 {[%emt 0:00:05]} Ne6 {[%emt 0:02:46]} 27. Nxe6 {[%emt 0:00:36]} Rxe6 {[%emt 0:00:09]} 28. b5 {[%emt 0:00:09]} axb5 {[%emt 0:00:43]} 29. axb5 {[%emt 0:00:08]} Rf8 {[%emt 0:02:24]} 30. bxc6 {[%emt 0:02:31]} bxc6 {[%emt 0:00:16]} 31. Rc5 {[%emt 0:02:32]} Rd6 {[%emt 0:02:14]} 32. Ra1 {[%emt 0:01:06]} Rc8 {[%emt 0:01:22]} 33. Ra7 {[%emt 0:01:23]} Rdd8 {[%emt 0:05:07]} 34. f3 {[%emt 0:00:39]} Rd6 {[%emt 0:01:24]} 35. Kf2 {[%emt 0:00:43]} h6 {[%emt 0:00:45]} 36. Ke2 {[%emt 0:01:01]} Kh7 {[%emt 0:00:30]} 37. Kd3 {[%emt 0:00:35]} Rg6 {[%emt 0:02:08]} 38. Ra2 {[%emt 0:00:30]} Rc7 {[%emt 0:00:42]} 39. Rac2 {[%emt 0:00:40]} Rd6 {[%emt 0:00:26]} 40. e4 {[%emt 0:00:00]} dxe4+ {[%emt 0:01:23]} 41. fxe4 {[%emt 0:00:47]} Rcd7 {[%emt 0:11:56]} 42. R2c4 {[%emt 0:00:17]} Rg6 {[%emt 0:00:32]} 43. Rc2 {[%emt 0:02:03]} Rg3+ {[%emt 0:04:22]} 44. Kc4 {[%emt 0:01:20]} Rg4 {[%emt 0:00:30]} 45. Re2 {[%emt 0:01:12]} Ra7 {[%emt 0:05:58]} 46. Rxc6 {[%emt 0:03:01]} Ra4+ {[%emt 0:01:16]} 47. Kd5 {[%emt 0:00:30]} Rg5+ {[%emt 0:01:18]} 48. e5 {[%emt 0:00:06]} Rg4 {[%emt 0:04:27]} 49. Rc4 {[%emt 0:01:42]} Ra5+ {[%emt 0:00:19]} 50. Rc5 {[%emt 0:00:03]} Ra4 {[%emt 0:00:33]} 51. Rd2 {[%emt 0:00:46]} Rg5 {[%emt 0:00:41]} 52. Rc6 {[%emt 0:02:07]} Ra5+ {[%emt 0:00:38]} 53. Kd6 {[%emt 0:00:33]} Rg6+ {[%emt 0:00:24]} 54. e6 {[%emt 0:00:35]} Ra7 {[%emt 0:00:21]} 55. d5 {[%emt 0:00:28]} Ra8 {[%emt 0:00:51]} 56. Kd7 {[%emt 0:00:19]} Rg3 {[%emt 0:00:26]} 57. e7 {[%emt 0:01:34]} Re3 {[%emt 0:00:30]} 58. d6 {[%emt 0:00:21]} Kg6 {[%emt 0:00:32]} 59. Rc8 {[%emt 0:00:42]} Ra7+ {[%emt 0:00:53]} 60. Kd8 {[%emt 0:00:08]} Kf7 {[%emt 0:00:42]} 61. Rf2+ 1-0